[Event "Titled Tuesday Blitz January 31 Early 2023"]
[White "Lauridsen, Jesper Morch"]
[Black "Skvortsov, Andrei"]
[WhiteFideId "1401890"]
[BlackFideId "24108600"]
[WhiteElo "2309"]
[BlackElo "2313"]
[Result "1/2-1/2"]
[Round "01"]
[TimeControl "180+2"]
[Date "2023.01.31"]
[WhiteClock "0:01:36"]
[BlackClock "0:02:36"]

1. e4 {[%clk 0:02:58]}  c5 {[%clk 0:03:00]} 2. Nf3 {[%clk 0:02:57]}  d6 {[%clk 0:03:00]} 3. d4 {[%clk 0:02:57]}  Nf6 {[%clk 0:03:01]} 4. Nc3 {[%clk 0:02:55]}  cxd4 {[%clk 0:03:01]} 5. Nxd4 {[%clk 0:02:56]}  g6 {[%clk 0:03:02]} 6. Be3 {[%clk 0:02:55]}  Bg7 {[%clk 0:03:03]} 7. Be2 {[%clk 0:02:55]}  O-O {[%clk 0:03:02]} 8. O-O {[%clk 0:02:54]}  d5 {[%clk 0:03:03]} 9. exd5 {[%clk 0:02:52]}  Nxd5 {[%clk 0:03:04]} 10. Nxd5 {[%clk 0:02:50]}  Qxd5 {[%clk 0:03:05]} 11. Bf3 {[%clk 0:02:51]}  Qa5 {[%clk 0:03:04]} 12. Nb3 {[%clk 0:02:49]}  Qc7 {[%clk 0:03:04]} 13. Qe2 {[%clk 0:02:40]}  Bxb2 {[%clk 0:03:04]} 14. Rab1 {[%clk 0:02:37]}  Bg7 {[%clk 0:03:04]} 15. Nc5 {[%clk 0:02:37]}  Nc6 {[%clk 0:03:04]} 16. Rfd1 {[%clk 0:02:27]}  b6 {[%clk 0:02:58]} 17. Na6 {[%clk 0:02:13]}  Bxa6 {[%clk 0:02:56]} 18. Qxa6 {[%clk 0:02:12]}  Rad8 {[%clk 0:02:54]} 19. Bxc6 {[%clk 0:02:05]}  Qxc6 {[%clk 0:02:55]} 20. Qxa7 {[%clk 0:01:48]}  Qxc2 {[%clk 0:02:54]} 21. Rf1 {[%clk 0:01:47]}  b5 {[%clk 0:02:44]} 22. Qxe7 {[%clk 0:01:41]}  Qxa2 {[%clk 0:02:36]} 23. Rxb5 {[%clk 0:01:36]} 1/2-1/2


[Site "https://www.chess.com"]

[Event "Titled Tuesday Blitz January 31 Early 2023"]
[White "Garrido, Denis"]
[Black "Chylewski, Patryk"]
[WhiteFideId "601217"]
[BlackFideId "1186191"]
[WhiteElo "2205"]
[BlackElo "2281"]
[Result "1-0"]
[Round "01"]
[TimeControl "180+2"]
[Date "2023.01.31"]
[WhiteClock "0:00:35"]
[BlackClock "0:00:02"]

1. e4 {[%clk 0:03:00]}  c5 {[%clk 0:02:59]} 2. Nf3 {[%clk 0:03:00]}  e6 {[%clk 0:02:53]} 3. d4 {[%clk 0:03:00]}  cxd4 {[%clk 0:02:54]} 4. Nxd4 {[%clk 0:03:01]}  Nc6 {[%clk 0:02:53]} 5. Nc3 {[%clk 0:03:00]}  Qc7 {[%clk 0:02:53]} 6. Qd3 {[%clk 0:02:59]}  a6 {[%clk 0:02:53]} 7. Nxc6 {[%clk 0:02:59]}  dxc6 {[%clk 0:02:52]} 8. Qg3 {[%clk 0:02:58]}  e5 {[%clk 0:02:51]} 9. Bc4 {[%clk 0:02:52]}  Ne7 {[%clk 0:02:46]} 10. O-O {[%clk 0:02:50]}  Ng6 {[%clk 0:02:45]} 11. f4 {[%clk 0:02:37]}  exf4 {[%clk 0:02:18]} 12. Bxf4 {[%clk 0:02:22]}  Nxf4 {[%clk 0:02:11]} 13. Rxf4 {[%clk 0:02:01]}  f6 {[%clk 0:01:17]} 14. e5 {[%clk 0:01:56]}  fxe5 {[%clk 0:00:40]} 15. Rf7 {[%clk 0:01:54]}  Qd6 {[%clk 0:00:36]} 16. Kh1 {[%clk 0:01:22]}  Bd7 {[%clk 0:00:32]} 17. Rd1 {[%clk 0:01:20]}  O-O-O {[%clk 0:00:16]} 18. Rxd6 {[%clk 0:01:16]}  Bxd6 {[%clk 0:00:17]} 19. Ne4 {[%clk 0:01:08]}  Bc7 {[%clk 0:00:13]} 20. Rxg7 {[%clk 0:01:04]}  Bf5 {[%clk 0:00:10]} 21. Nc3 {[%clk 0:00:54]}  Rhf8 {[%clk 0:00:06]} 22. h3 {[%clk 0:00:45]}  Bxc2 {[%clk 0:00:03]} 23. Rxc7+ {[%clk 0:00:43]}  Kxc7 {[%clk 0:00:03]} 24. Qxe5+ {[%clk 0:00:43]}  Kb6 {[%clk 0:00:03]} 25. Qe3+ {[%clk 0:00:39]}  Kc7 {[%clk 0:00:03]} 26. Qe7+ {[%clk 0:00:37]}  Kb6 {[%clk 0:00:03]} 27. Na4+ {[%clk 0:00:37]}  Ka7 {[%clk 0:00:02]} 28. Qc5+ {[%clk 0:00:37]}  Kb8 {[%clk 0:00:02]} 29. Nb6 {[%clk 0:00:35]} 1-0


[Site "https://www.chess.com"]

[Event "Titled Tuesday Blitz January 31 Early 2023"]
[White "Panesso Rivera, Henry"]
[Black "Stavri, Gligor"]
[WhiteFideId "4402707"]
[BlackFideId "4706013"]
[WhiteElo "2342"]
[BlackElo "1867"]
[Result "0-1"]
[Round "01"]
[TimeControl "180+2"]
[Date "2023.01.31"]
[WhiteClock "0:00:05"]
[BlackClock "0:00:07"]

1. Nf3 {[%clk 0:02:59]}  Nf6 {[%clk 0:02:59]} 2. b3 {[%clk 0:02:59]}  g6 {[%clk 0:02:58]} 3. Bb2 {[%clk 0:02:59]}  Bg7 {[%clk 0:02:59]} 4. g3 {[%clk 0:02:59]}  c5 {[%clk 0:02:57]} 5. Bg2 {[%clk 0:02:58]}  d6 {[%clk 0:02:53]} 6. O-O {[%clk 0:02:57]}  e5 {[%clk 0:02:52]} 7. c4 {[%clk 0:02:46]}  O-O {[%clk 0:02:52]} 8. d3 {[%clk 0:02:44]}  Nc6 {[%clk 0:02:52]} 9. Nc3 {[%clk 0:02:41]}  a6 {[%clk 0:02:49]} 10. Ng5 {[%clk 0:02:38]}  Rb8 {[%clk 0:02:45]} 11. Nge4 {[%clk 0:02:34]}  Nxe4 {[%clk 0:02:43]} 12. dxe4 {[%clk 0:02:34]}  b5 {[%clk 0:02:40]} 13. cxb5 {[%clk 0:02:30]}  axb5 {[%clk 0:02:41]} 14. Qd2 {[%clk 0:02:22]}  Be6 {[%clk 0:02:40]} 15. Rfd1 {[%clk 0:02:18]}  b4 {[%clk 0:02:36]} 16. Na4 {[%clk 0:02:10]}  Nd4 {[%clk 0:02:33]} 17. e3 {[%clk 0:02:08]}  Nb5 {[%clk 0:02:32]} 18. Bf1 {[%clk 0:02:02]}  Bg4 {[%clk 0:02:30]} 19. Be2 {[%clk 0:01:47]}  Bxe2 {[%clk 0:02:29]} 20. Qxe2 {[%clk 0:01:47]}  Qe7 {[%clk 0:02:23]} 21. Rd2 {[%clk 0:01:45]}  Rfd8 {[%clk 0:02:19]} 22. Rad1 {[%clk 0:01:45]}  Bf8 {[%clk 0:02:18]} 23. f3 {[%clk 0:01:42]}  Qb7 {[%clk 0:02:13]} 24. Bxe5 {[%clk 0:01:35]}  Re8 {[%clk 0:01:51]} 25. Bb2 {[%clk 0:01:33]}  Qc6 {[%clk 0:01:48]} 26. Qc4 {[%clk 0:01:30]}  Re6 {[%clk 0:01:44]} 27. Ba1 {[%clk 0:01:29]}  Ra8 {[%clk 0:01:41]} 28. Qc2 {[%clk 0:01:26]}  Be7 {[%clk 0:01:37]} 29. Rd5 {[%clk 0:01:23]}  Nc7 {[%clk 0:01:32]} 30. R5d2 {[%clk 0:01:22]}  h5 {[%clk 0:01:27]} 31. h4 {[%clk 0:01:22]}  Nb5 {[%clk 0:01:23]} 32. Kh2 {[%clk 0:01:21]}  Rc8 {[%clk 0:01:18]} 33. Nb2 {[%clk 0:01:12]}  Nc3 {[%clk 0:01:17]} 34. Rg1 {[%clk 0:01:06]}  Nxa2 {[%clk 0:01:15]} 35. Nc4 {[%clk 0:01:06]}  Ra8 {[%clk 0:01:09]} 36. g4 {[%clk 0:01:04]}  hxg4 {[%clk 0:01:06]} 37. Rxg4 {[%clk 0:01:05]}  Nc3 {[%clk 0:00:56]} 38. Bxc3 {[%clk 0:01:04]}  bxc3 {[%clk 0:00:57]} 39. Qxc3 {[%clk 0:01:05]}  Rb8 {[%clk 0:00:50]} 40. Qc2 {[%clk 0:00:57]}  Qc7 {[%clk 0:00:49]} 41. Rd3 {[%clk 0:00:55]}  d5+ {[%clk 0:00:48]} 42. f4 {[%clk 0:00:45]}  dxc4 {[%clk 0:00:48]} 43. Qxc4 {[%clk 0:00:46]}  Rd8 {[%clk 0:00:37]} 44. e5 {[%clk 0:00:44]}  Rxd3 {[%clk 0:00:34]} 45. Qxd3 {[%clk 0:00:44]}  Qd8 {[%clk 0:00:33]} 46. Qc2 {[%clk 0:00:36]}  Qd5 {[%clk 0:00:32]} 47. e4 {[%clk 0:00:27]}  Qd4 {[%clk 0:00:31]} 48. h5 {[%clk 0:00:27]}  Kg7 {[%clk 0:00:26]} 49. Qg2 {[%clk 0:00:19]}  Ra6 {[%clk 0:00:12]} 50. Kh3 {[%clk 0:00:09]}  Rb6 {[%clk 0:00:12]} 51. f5 {[%clk 0:00:09]}  Rxb3+ {[%clk 0:00:11]} 52. Rg3 {[%clk 0:00:10]}  Rxg3+ {[%clk 0:00:09]} 53. Qxg3 {[%clk 0:00:11]}  Qxe4 {[%clk 0:00:02]} 54. f6+ {[%clk 0:00:10]}  Bxf6 {[%clk 0:00:03]} 55. exf6+ {[%clk 0:00:11]}  Kxf6 {[%clk 0:00:03]} 56. h6 {[%clk 0:00:06]}  Qf5+ {[%clk 0:00:04]} 57. Kh2 {[%clk 0:00:06]}  Qh5+ {[%clk 0:00:04]} 58. Kg2 {[%clk 0:00:05]}  Qxh6 {[%clk 0:00:04]} 59. Qd6+ {[%clk 0:00:05]}  Kg7 {[%clk 0:00:04]} 60. Qxc5 {[%clk 0:00:06]}  Qf4 {[%clk 0:00:05]} 61. Qa3 {[%clk 0:00:05]}  Qf6 {[%clk 0:00:05]} 62. Kg1 {[%clk 0:00:05]}  Qg5+ {[%clk 0:00:06]} 63. Kf2 {[%clk 0:00:06]}  Qf5+ {[%clk 0:00:07]} 64. Kg2 {[%clk 0:00:06]}  g5 {[%clk 0:00:07]} 65. Qb3 {[%clk 0:00:04]}  Kg6 {[%clk 0:00:08]} 66. Qb6+ {[%clk 0:00:04]}  Qe6 {[%clk 0:00:07]} 67. Qb8 {[%clk 0:00:05]}  Qe4+ {[%clk 0:00:07]} 68. Kg1 {[%clk 0:00:05]}  Qg4+ {[%clk 0:00:07]} 69. Kh2 {[%clk 0:00:05]}  Qf4+ {[%clk 0:00:07]} 0-1


[Site "https://www.chess.com"]

[Event "Titled Tuesday Blitz January 31 Early 2023"]
[White "Chor, Kevin"]
[Black "Bobomurodova, Maftuna"]
[WhiteFideId "2090740"]
[BlackFideId "14207400"]
[WhiteElo "1944"]
[BlackElo "1946"]
[Result "1-0"]
[Round "01"]
[TimeControl "180+2"]
[Date "2023.01.31"]
[WhiteClock "0:01:09"]
[BlackClock "0:00:44"]

1. e4 {[%clk 0:02:55]}  e5 {[%clk 0:02:59]} 2. Nf3 {[%clk 0:02:56]}  Nc6 {[%clk 0:02:58]} 3. Bb5 {[%clk 0:02:56]}  Nf6 {[%clk 0:02:58]} 4. d3 {[%clk 0:02:56]}  Bc5 {[%clk 0:02:56]} 5. c3 {[%clk 0:02:55]}  O-O {[%clk 0:02:40]} 6. O-O {[%clk 0:02:55]}  d6 {[%clk 0:02:40]} 7. Nbd2 {[%clk 0:02:48]}  Ne7 {[%clk 0:02:38]} 8. d4 {[%clk 0:02:47]}  exd4 {[%clk 0:02:38]} 9. cxd4 {[%clk 0:02:48]}  Bb6 {[%clk 0:02:38]} 10. h3 {[%clk 0:02:46]}  Ng6 {[%clk 0:02:36]} 11. Re1 {[%clk 0:02:46]}  c6 {[%clk 0:02:34]} 12. Bd3 {[%clk 0:02:42]}  Re8 {[%clk 0:02:30]} 13. Nc4 {[%clk 0:02:42]}  Bc7 {[%clk 0:02:29]} 14. Bg5 {[%clk 0:02:43]}  h6 {[%clk 0:02:28]} 15. Bd2 {[%clk 0:02:43]}  d5 {[%clk 0:02:23]} 16. exd5 {[%clk 0:02:43]}  Nxd5 {[%clk 0:02:17]} 17. Bxg6 {[%clk 0:02:39]}  fxg6 {[%clk 0:02:16]} 18. Nce5 {[%clk 0:02:39]}  Bf5 {[%clk 0:02:12]} 19. g4 {[%clk 0:02:36]}  Be6 {[%clk 0:02:04]} 20. Nxg6 {[%clk 0:02:27]}  Qf6 {[%clk 0:02:02]} 21. Nge5 {[%clk 0:02:18]}  Nf4 {[%clk 0:01:52]} 22. Kh2 {[%clk 0:02:12]}  Bd5 {[%clk 0:01:50]} 23. Kg3 {[%clk 0:01:55]}  Ng6 {[%clk 0:01:46]} 24. Qe2 {[%clk 0:01:51]}  Rad8 {[%clk 0:01:37]} 25. Rad1 {[%clk 0:01:47]}  Bxf3 {[%clk 0:01:35]} 26. Qxf3 {[%clk 0:01:45]}  Qxf3+ {[%clk 0:01:28]} 27. Kxf3 {[%clk 0:01:38]}  Nxe5+ {[%clk 0:01:22]} 28. dxe5 {[%clk 0:01:31]}  Bxe5 {[%clk 0:01:16]} 29. Bc1 {[%clk 0:01:28]}  Bf6 {[%clk 0:01:11]} 30. Rxe8+ {[%clk 0:01:24]}  Rxe8 {[%clk 0:01:11]} 31. Rd7 {[%clk 0:01:25]}  Re7 {[%clk 0:01:11]} 32. Rxe7 {[%clk 0:01:21]}  Bxe7 {[%clk 0:01:12]} 33. Ke4 {[%clk 0:01:22]}  Kf7 {[%clk 0:01:12]} 34. Be3 {[%clk 0:01:21]}  a6 {[%clk 0:01:08]} 35. b3 {[%clk 0:01:21]}  Ke6 {[%clk 0:01:08]} 36. f4 {[%clk 0:01:20]}  g6 {[%clk 0:01:07]} 37. f5+ {[%clk 0:01:19]}  gxf5+ {[%clk 0:01:06]} 38. gxf5+ {[%clk 0:01:20]}  Kf7 {[%clk 0:01:05]} 39. Bxh6 {[%clk 0:01:20]}  Bf6 {[%clk 0:01:04]} 40. Bf4 {[%clk 0:01:20]}  Bh4 {[%clk 0:01:01]} 41. Be5 {[%clk 0:01:20]}  Ke7 {[%clk 0:01:01]} 42. Kd4 {[%clk 0:01:14]}  Bf2+ {[%clk 0:00:59]} 43. Kc4 {[%clk 0:01:14]}  b5+ {[%clk 0:00:56]} 44. Kd3 {[%clk 0:01:13]}  c5 {[%clk 0:00:55]} 45. Ke4 {[%clk 0:01:09]}  c4 {[%clk 0:00:52]} 46. bxc4 {[%clk 0:01:10]}  bxc4 {[%clk 0:00:52]} 47. Kd5 {[%clk 0:01:11]}  c3 {[%clk 0:00:45]} 48. Bxc3 {[%clk 0:01:10]}  Kd7 {[%clk 0:00:45]} 49. f6 {[%clk 0:01:10]}  Ke8 {[%clk 0:00:44]} 50. Ke6 {[%clk 0:01:09]}  Bh4 {[%clk 0:00:44]} 51. f7+ {[%clk 0:01:09]} 1-0


[Site "https://www.chess.com"]

[Event "Titled Tuesday Blitz January 31 Early 2023"]
[White "Smietanska, Wiktoria"]
[Black "Arabidze, Meri"]
[WhiteFideId "21869359"]
[BlackFideId "13604040"]
[WhiteElo "1936"]
[BlackElo "2441"]
[Result "0-1"]
[Round "01"]
[TimeControl "180+2"]
[Date "2023.01.31"]
[WhiteClock "0:00:01"]
[BlackClock "0:01:06"]

1. c4 {[%clk 0:02:59]}  e6 {[%clk 0:02:59]} 2. Nc3 {[%clk 0:02:58]}  d5 {[%clk 0:02:59]} 3. d4 {[%clk 0:02:58]}  Nf6 {[%clk 0:02:59]} 4. cxd5 {[%clk 0:02:56]}  exd5 {[%clk 0:03:00]} 5. Bg5 {[%clk 0:02:56]}  Be7 {[%clk 0:03:00]} 6. e3 {[%clk 0:02:56]}  c6 {[%clk 0:03:01]} 7. Bd3 {[%clk 0:02:56]}  Nbd7 {[%clk 0:03:00]} 8. Nge2 {[%clk 0:02:53]}  O-O {[%clk 0:02:58]} 9. O-O {[%clk 0:02:44]}  Re8 {[%clk 0:02:57]} 10. Qc2 {[%clk 0:02:36]}  Nf8 {[%clk 0:02:56]} 11. Rae1 {[%clk 0:02:35]}  g6 {[%clk 0:02:55]} 12. f3 {[%clk 0:02:31]}  Ne6 {[%clk 0:02:55]} 13. Bh4 {[%clk 0:02:30]}  b5 {[%clk 0:02:55]} 14. Bf2 {[%clk 0:02:28]}  Bd7 {[%clk 0:02:48]} 15. e4 {[%clk 0:02:27]}  dxe4 {[%clk 0:02:48]} 16. fxe4 {[%clk 0:02:23]}  Ng4 {[%clk 0:02:48]} 17. e5 {[%clk 0:01:46]}  Ng5 {[%clk 0:02:28]} 18. Qd2 {[%clk 0:01:34]}  b4 {[%clk 0:02:20]} 19. Ne4 {[%clk 0:01:26]}  Nxe4 {[%clk 0:02:20]} 20. Bxe4 {[%clk 0:01:26]}  Nxf2 {[%clk 0:02:18]} 21. Rxf2 {[%clk 0:01:25]}  Bh4 {[%clk 0:02:16]} 22. g3 {[%clk 0:01:24]}  Bg5 {[%clk 0:02:16]} 23. Qxb4 {[%clk 0:01:22]}  Be3 {[%clk 0:02:13]} 24. Nf4 {[%clk 0:01:10]}  Qb6 {[%clk 0:01:48]} 25. Qd6 {[%clk 0:01:02]}  Bxd4 {[%clk 0:01:41]} 26. Rf1 {[%clk 0:00:40]}  Rad8 {[%clk 0:01:40]} 27. Qa3 {[%clk 0:00:27]}  Rxe5 {[%clk 0:01:35]} 28. Qf3 {[%clk 0:00:13]}  f5 {[%clk 0:01:31]} 29. Bc2 {[%clk 0:00:09]}  Rde8 {[%clk 0:01:29]} 30. Bb3+ {[%clk 0:00:09]}  Kh8 {[%clk 0:01:30]} 31. Kg2 {[%clk 0:00:06]}  Bxf2 {[%clk 0:01:29]} 32. Rxf2 {[%clk 0:00:07]}  Re3 {[%clk 0:01:26]} 33. Qd1 {[%clk 0:00:07]}  R3e7 {[%clk 0:01:15]} 34. Qc2 {[%clk 0:00:05]}  Qd4 {[%clk 0:01:13]} 35. Rd2 {[%clk 0:00:05]}  Qe4+ {[%clk 0:01:12]} 36. Qxe4 {[%clk 0:00:05]}  fxe4 {[%clk 0:01:13]} 37. Re2 {[%clk 0:00:04]}  e3 {[%clk 0:01:12]} 38. Kf3 {[%clk 0:00:03]}  Bf5 {[%clk 0:01:07]} 39. Bc4 {[%clk 0:00:01]}  h5 {[%clk 0:01:05]} 40. h3 {[%clk 0:00:01]}  Kg7 {[%clk 0:01:06]} 0-1


[Site "https://www.chess.com"]

[Event "Titled Tuesday Blitz January 31 Early 2023"]
[White "Vaglio Munoz, Jaime"]
[Black "Korchmar, Vasiliy"]
[WhiteFideId "6500145"]
[BlackFideId "24131750"]
[WhiteElo "2174"]
[BlackElo "2438"]
[Result "0-1"]
[Round "01"]
[TimeControl "180+2"]
[Date "2023.01.31"]
[WhiteClock "0:01:56"]
[BlackClock "0:01:07"]

1. d4 {[%clk 0:02:59]}  d5 {[%clk 0:02:59]} 2. c4 {[%clk 0:02:58]}  c6 {[%clk 0:02:59]} 3. Nf3 {[%clk 0:02:56]}  Nf6 {[%clk 0:03:00]} 4. e3 {[%clk 0:02:56]}  e6 {[%clk 0:03:00]} 5. Qb3 {[%clk 0:02:55]}  Nbd7 {[%clk 0:02:59]} 6. Nc3 {[%clk 0:02:54]}  Bd6 {[%clk 0:02:59]} 7. Bd2 {[%clk 0:02:53]}  O-O {[%clk 0:02:59]} 8. Be2 {[%clk 0:02:51]}  dxc4 {[%clk 0:02:53]} 9. Bxc4 {[%clk 0:02:49]}  e5 {[%clk 0:02:52]} 10. O-O-O {[%clk 0:02:47]}  exd4 {[%clk 0:02:32]} 11. Nxd4 {[%clk 0:02:46]}  Nc5 {[%clk 0:02:15]} 12. Qc2 {[%clk 0:02:44]}  Qe7 {[%clk 0:02:09]} 13. Nf5 {[%clk 0:02:42]}  Bxf5 {[%clk 0:02:09]} 14. Qxf5 {[%clk 0:02:42]}  Rad8 {[%clk 0:01:57]} 15. g4 {[%clk 0:02:39]}  b5 {[%clk 0:01:55]} 16. Be2 {[%clk 0:02:35]}  b4 {[%clk 0:01:44]} 17. Nb1 {[%clk 0:02:34]}  g6 {[%clk 0:01:30]} 18. Qg5 {[%clk 0:02:31]}  Nce4 {[%clk 0:01:28]} 19. Qh6 {[%clk 0:02:30]}  Nxf2 {[%clk 0:01:22]} 20. g5 {[%clk 0:02:26]}  N6e4 {[%clk 0:01:21]} 21. h4 {[%clk 0:02:20]}  Nxd1 {[%clk 0:01:20]} 22. Bxd1 {[%clk 0:02:16]}  Ng3 {[%clk 0:01:19]} 23. Rg1 {[%clk 0:02:10]}  Nf5 {[%clk 0:01:19]} 24. h5 {[%clk 0:02:05]}  Nxh6 {[%clk 0:01:18]} 25. gxh6 {[%clk 0:02:06]}  Be5 {[%clk 0:01:17]} 26. Bb3 {[%clk 0:02:05]}  Qc5+ {[%clk 0:01:11]} 27. Kd1 {[%clk 0:02:03]}  Qxe3 {[%clk 0:01:09]} 28. Rg2 {[%clk 0:01:59]}  Qf3+ {[%clk 0:01:08]} 29. Re2 {[%clk 0:01:58]}  Bf4 {[%clk 0:01:07]} 30. hxg6 {[%clk 0:01:56]}  hxg6 {[%clk 0:01:07]} 0-1


[Site "https://www.chess.com"]

[Event "Titled Tuesday Blitz January 31 Early 2023"]
[White "Jianu, Vlad-Cristian"]
[Black "Skuhala, Barbara"]
[WhiteFideId "1208110"]
[BlackFideId "14605465"]
[WhiteElo "2504"]
[BlackElo "2153"]
[Result "1-0"]
[Round "01"]
[TimeControl "180+2"]
[Date "2023.01.31"]
[WhiteClock "0:01:43"]
[BlackClock "0:00:51"]

1. d4 {[%clk 0:03:00]}  Nf6 {[%clk 0:02:59]} 2. c4 {[%clk 0:03:00]}  e6 {[%clk 0:02:57]} 3. Nc3 {[%clk 0:02:57]}  Bb4 {[%clk 0:02:54]} 4. f3 {[%clk 0:02:56]}  c5 {[%clk 0:02:53]} 5. d5 {[%clk 0:02:54]}  d6 {[%clk 0:02:49]} 6. e4 {[%clk 0:02:49]}  exd5 {[%clk 0:02:48]} 7. cxd5 {[%clk 0:02:42]}  O-O {[%clk 0:02:36]} 8. Ne2 {[%clk 0:02:42]}  a6 {[%clk 0:02:34]} 9. a4 {[%clk 0:02:37]}  Nbd7 {[%clk 0:02:30]} 10. Ng3 {[%clk 0:02:37]}  Ne5 {[%clk 0:02:29]} 11. Be2 {[%clk 0:02:37]}  Qa5 {[%clk 0:02:22]} 12. Bd2 {[%clk 0:02:32]}  Ng6 {[%clk 0:02:19]} 13. O-O {[%clk 0:02:31]}  Re8 {[%clk 0:02:19]} 14. Qc2 {[%clk 0:02:27]}  Qd8 {[%clk 0:02:15]} 15. f4 {[%clk 0:02:17]}  Bg4 {[%clk 0:02:08]} 16. Bd3 {[%clk 0:02:16]}  Rc8 {[%clk 0:01:57]} 17. b3 {[%clk 0:02:15]}  Bxc3 {[%clk 0:01:52]} 18. Bxc3 {[%clk 0:02:15]}  b5 {[%clk 0:01:43]} 19. axb5 {[%clk 0:02:14]}  axb5 {[%clk 0:01:42]} 20. Bxb5 {[%clk 0:02:15]}  Rf8 {[%clk 0:01:17]} 21. f5 {[%clk 0:02:09]}  Ne5 {[%clk 0:01:05]} 22. h3 {[%clk 0:02:03]}  c4 {[%clk 0:01:03]} 23. bxc4 {[%clk 0:01:55]}  Qb6+ {[%clk 0:01:01]} 24. Qf2 {[%clk 0:01:50]}  Qxf2+ {[%clk 0:00:59]} 25. Rxf2 {[%clk 0:01:50]}  Bh5 {[%clk 0:00:59]} 26. Bxe5 {[%clk 0:01:44]}  dxe5 {[%clk 0:00:58]} 27. Nf1 {[%clk 0:01:45]}  Nxe4 {[%clk 0:00:55]} 28. g4 {[%clk 0:01:42]}  Nxf2 {[%clk 0:00:52]} 29. Kxf2 {[%clk 0:01:43]}  Bxg4 {[%clk 0:00:51]} 30. hxg4 {[%clk 0:01:43]} 1-0


[Site "https://www.chess.com"]

[Event "Titled Tuesday Blitz January 31 Early 2023"]
[White "De Souza, Cristiano Gomes"]
[Black "Orzech, Dominik"]
[WhiteFideId "2151758"]
[BlackFideId "1115065"]
[WhiteElo "2018"]
[BlackElo "2308"]
[Result "0-1"]
[Round "01"]
[TimeControl "180+2"]
[Date "2023.01.31"]
[WhiteClock "0:00:12"]
[BlackClock "0:01:17"]

1. d4 {[%clk 0:02:59]}  Nf6 {[%clk 0:02:57]} 2. c4 {[%clk 0:02:59]}  c5 {[%clk 0:02:57]} 3. d5 {[%clk 0:02:58]}  e6 {[%clk 0:02:58]} 4. Nc3 {[%clk 0:02:56]}  exd5 {[%clk 0:02:58]} 5. cxd5 {[%clk 0:02:57]}  d6 {[%clk 0:02:59]} 6. h3 {[%clk 0:02:55]}  g6 {[%clk 0:02:58]} 7. e4 {[%clk 0:02:55]}  Bg7 {[%clk 0:02:58]} 8. Nf3 {[%clk 0:02:54]}  O-O {[%clk 0:02:58]} 9. Bd3 {[%clk 0:02:54]}  Bd7 {[%clk 0:02:39]} 10. a4 {[%clk 0:02:52]}  Na6 {[%clk 0:02:36]} 11. O-O {[%clk 0:02:50]}  Nb4 {[%clk 0:02:27]} 12. Re1 {[%clk 0:02:27]}  Re8 {[%clk 0:02:22]} 13. Bf4 {[%clk 0:02:23]}  Nxd3 {[%clk 0:02:10]} 14. Qxd3 {[%clk 0:02:20]}  Qc7 {[%clk 0:02:05]} 15. Nd2 {[%clk 0:02:10]}  a6 {[%clk 0:02:00]} 16. Nc4 {[%clk 0:02:09]}  Bf8 {[%clk 0:01:48]} 17. a5 {[%clk 0:02:06]}  Nh5 {[%clk 0:01:48]} 18. Bh2 {[%clk 0:02:03]}  Rad8 {[%clk 0:01:47]} 19. g4 {[%clk 0:01:49]}  Nf6 {[%clk 0:01:45]} 20. f4 {[%clk 0:01:49]}  Bb5 {[%clk 0:01:44]} 21. Nxb5 {[%clk 0:01:26]}  axb5 {[%clk 0:01:45]} 22. Nd2 {[%clk 0:01:08]}  c4 {[%clk 0:01:44]} 23. Qd4 {[%clk 0:01:04]}  Bg7 {[%clk 0:01:43]} 24. Qb6 {[%clk 0:00:56]}  Qd7 {[%clk 0:01:38]} 25. g5 {[%clk 0:00:35]}  Nh5 {[%clk 0:01:33]} 26. Kg2 {[%clk 0:00:23]}  Bxb2 {[%clk 0:01:30]} 27. Rab1 {[%clk 0:00:22]}  c3 {[%clk 0:01:30]} 28. Nf3 {[%clk 0:00:19]}  f5 {[%clk 0:01:27]} 29. e5 {[%clk 0:00:18]}  dxe5 {[%clk 0:01:26]} 30. fxe5 {[%clk 0:00:18]}  Qxd5 {[%clk 0:01:25]} 31. e6 {[%clk 0:00:18]}  b4 {[%clk 0:01:20]} 32. Qf2 {[%clk 0:00:17]}  b3 {[%clk 0:01:17]} 33. Rxb2 {[%clk 0:00:16]}  cxb2 {[%clk 0:01:17]} 34. Qxb2 {[%clk 0:00:16]}  Rxe6 {[%clk 0:01:17]} 35. Rxe6 {[%clk 0:00:15]}  Qxe6 {[%clk 0:01:18]} 36. Nd4 {[%clk 0:00:15]}  Qe4+ {[%clk 0:01:17]} 37. Nf3 {[%clk 0:00:14]}  Rd3 {[%clk 0:01:17]} 38. Qf2 {[%clk 0:00:12]}  Rxf3 {[%clk 0:01:17]} 39. Qxf3 {[%clk 0:00:13]}  b2 {[%clk 0:01:17]} 40. Qxe4 {[%clk 0:00:12]}  fxe4 {[%clk 0:01:17]} 0-1


[Site "https://www.chess.com"]

[Event "Titled Tuesday Blitz January 31 Early 2023"]
[White "Czernek, Tymon"]
[Black "Lobachev, Yury"]
[WhiteFideId "1199510"]
[BlackFideId "24138177"]
[WhiteElo "2314"]
[BlackElo "2345"]
[Result "1-0"]
[Round "01"]
[TimeControl "180+2"]
[Date "2023.01.31"]
[WhiteClock "0:00:57"]
[BlackClock "0:00:13"]

1. e4 {[%clk 0:02:59]}  c5 {[%clk 0:03:00]} 2. Nf3 {[%clk 0:02:58]}  e6 {[%clk 0:03:00]} 3. d4 {[%clk 0:02:58]}  cxd4 {[%clk 0:03:01]} 4. Nxd4 {[%clk 0:02:59]}  a6 {[%clk 0:03:02]} 5. Bd3 {[%clk 0:02:59]}  Qc7 {[%clk 0:03:02]} 6. O-O {[%clk 0:02:58]}  Nf6 {[%clk 0:03:02]} 7. c4 {[%clk 0:02:59]}  Be7 {[%clk 0:03:01]} 8. Nc3 {[%clk 0:02:59]}  O-O {[%clk 0:03:01]} 9. Kh1 {[%clk 0:02:57]}  Nc6 {[%clk 0:03:00]} 10. Nxc6 {[%clk 0:02:57]}  dxc6 {[%clk 0:03:01]} 11. f4 {[%clk 0:02:57]}  e5 {[%clk 0:02:56]} 12. f5 {[%clk 0:02:56]}  b5 {[%clk 0:02:53]} 13. Qf3 {[%clk 0:02:53]}  b4 {[%clk 0:02:49]} 14. Ne2 {[%clk 0:02:52]}  Nd7 {[%clk 0:02:34]} 15. g4 {[%clk 0:02:49]}  f6 {[%clk 0:02:33]} 16. h4 {[%clk 0:02:48]}  Nc5 {[%clk 0:02:20]} 17. Bc2 {[%clk 0:02:47]}  a5 {[%clk 0:02:02]} 18. g5 {[%clk 0:02:45]}  Ba6 {[%clk 0:02:02]} 19. b3 {[%clk 0:02:43]}  a4 {[%clk 0:01:57]} 20. Ng3 {[%clk 0:02:35]}  axb3 {[%clk 0:01:53]} 21. axb3 {[%clk 0:02:36]}  Bb7 {[%clk 0:01:53]} 22. Be3 {[%clk 0:02:16]}  Rxa1 {[%clk 0:01:48]} 23. Rxa1 {[%clk 0:02:17]}  Ra8 {[%clk 0:01:48]} 24. Rxa8+ {[%clk 0:02:13]}  Bxa8 {[%clk 0:01:49]} 25. Nh5 {[%clk 0:02:12]}  Nd7 {[%clk 0:01:38]} 26. Qg2 {[%clk 0:02:01]}  Kh8 {[%clk 0:01:13]} 27. Bd1 {[%clk 0:01:37]}  Qd6 {[%clk 0:00:51]} 28. Bf3 {[%clk 0:01:33]}  Qd3 {[%clk 0:00:47]} 29. Bf2 {[%clk 0:01:20]}  Qxb3 {[%clk 0:00:32]} 30. Nxg7 {[%clk 0:01:09]}  Kxg7 {[%clk 0:00:24]} 31. gxf6+ {[%clk 0:01:09]}  Kxf6 {[%clk 0:00:13]} 32. Bh5 {[%clk 0:00:57]} 1-0


[Site "https://www.chess.com"]